bitfinex-derivatives/quotes_ETHF0:USTF0_20220103
["timestamp","ask_amount","ask_price","bid_price","bid_amount"]
[1641236589226,0.7321,3755.9,3755.7,0.8772059]
[1641236589426,0.229991,3755.8,3755.7,0.8772059]
[1641236589627,0.7321,3755.9,3755.7,0.8772059]
[1641236590630,0.229991,3755.8,3755.7,0.8772059]
[1641236592533,2.00479,3756.2,3755.7,0.8772059]
[1641236592731,2.00479,3756.2,3755.7,1.6467059]
[1641236594234,2.00479,3756.2,3755.8,2.99839146]
[1641236594632,1.5,3755.9,3755.7,0.8772059]
[1641236594838,0.229991,3755.8,3755.5,3.74861521]
[1641236595032,1.33111304,3755.7,3753.6,1.33111304]
[1641236595237,1.33111304,3755.7,3755.4,3.74805967]
[1641236595432,1.5,3756.0,3755.4,3.74805967]
[1641236595633,2.83103154,3756.0,3755.4,3.74805967]
[1641236596033,2.83103154,3756.0,3755.3,0.68813419]
[1641236596634,4.00958,3755.4,3755.3,0.68813419]
[1641236597037,0.128157,3756.3,3755.3,0.68813419]
[1641236597234,0.128157,3756.3,3755.7,1.4995413]
[1641236597434,1.5,3755.9,3755.7,1.4995413]
[1641236597635,0.128157,3756.3,3755.7,1.4995413]
[1641236597636,0.229991,3755.8,3755.7,1.4995413]
[1641236597839,2.2356,3756.2,3755.7,1.4995413]
[1641236598037,1.5,3755.9,3755.7,1.4995413]
[1641236598335,1.5,3755.9,3755.3,0.68813419]
[1641236598737,2.00479,3755.4,3755.3,0.68813419]
[1641236598938,2.894338,3755.4,3755.3,0.68813419]
[1641236599440,2.894338,3755.4,3754.0,7.34873152]
[1641236599637,1.5,3754.9,3754.0,7.34873152]
[1641236599839,1.5,3755.3,3754.0,7.34873152]
[1641236600037,2.664347,3755.4,3754.0,7.34873152]
[1641236600238,3.99559826,3755.4,3754.0,3.75795319]
[1641236600440,3.99559826,3755.4,3754.1,0.6990125]
[1641236600638,2.00479,3754.7,3754.1,0.6990125]
[1641236602339,2.00479,3754.7,3754.6,3.74923973]
[1641236602542,0.128157,3755.3,3754.6,3.74923973]
[1641236602840,0.128157,3755.3,3754.7,0.94899315]
[1641236603242,4.54098,3755.4,3754.7,0.94899315]
[1641236604443,0.128157,3755.3,3754.7,0.94899315]
[1641236604844,0.128157,3755.3,3754.7,1.07715015]
[1641236605044,4.00958,3755.4,3754.7,1.07715015]
[1641236606846,0.128157,3755.3,3754.7,1.07715015]
[1641236607048,0.683757,3755.3,3754.7,1.07715015]
[1641236608447,0.5556,3755.3,3754.7,1.07715015]
[1641236609050,4.00958,3755.4,3754.7,1.07715015]
[1641236610053,1.91102258,3756.4,3754.7,1.82095015]
[1641236610253,27.6754,3756.6,3754.9,1.5]
[1641236610452,27.6754,3756.6,3754.7,1.82095015]
[1641236610453,27.5512,3757.4,3755.1,1.5]
[1641236610652,2.00479,3756.4,3755.5,2.00479]
[1641236610853,2.00479,3756.4,3755.6,0.128157]
[1641236611653,0.128157,3756.3,3755.6,0.128157]
[1641236611853,0.128157,3756.3,3755.5,2.00479]
[1641236611854,0.841157,3756.3,3755.5,2.00479]
[1641236612253,0.841157,3756.3,3755.6,0.98674474]
[1641236612852,0.841157,3756.3,3755.6,1.11490174]
[1641236617359,0.713,3756.3,3755.6,1.11490174]
[1641236617561,2.00479,3756.4,3755.6,1.11490174]
[1641236617759,0.128157,3756.3,3755.6,1.11490174]
[1641236619162,0.128157,3756.3,3755.6,0.98674474]
[1641236619362,2.00479,3756.4,3755.6,0.98674474]
[1641236620764,2.00479,3756.4,3755.7,0.128157]
[1641236623167,2.00479,3756.4,3755.6,0.98674474]
[1641236624768,1.5,3755.8,3755.6,0.98674474]
[1641236624969,2.234781,3755.7,3755.6,0.98674474]
[1641236625270,3.56598086,3755.7,3755.4,1.49034683]
[1641236625467,2.234781,3755.7,3755.4,1.49034683]
[1641236625669,2.234781,3755.7,3755.2,2.00479]
[1641236625868,2.234781,3755.7,3755.5,0.71893758]
[1641236626269,14.26136114,3755.6,3754.9,3.75818424]
[1641236626471,1.5,3755.0,3752.9,1.33136114]
[1641236626669,1.5,3754.7,3752.9,1.33136114]
[1641236626869,0.229991,3754.7,3752.9,1.33136114]
[1641236627068,4.239571,3754.7,3753.4,2.00479]
[1641236627269,4.239571,3754.7,3753.7,5.24993247]
[1641236627469,4.239571,3754.7,3753.7,9.75896639]
[1641236627871,4.239571,3754.7,3753.7,10.77579001]
[1641236628470,4.239571,3754.7,3753.7,1.76841784]
[1641236629070,2.00479,3754.3,3753.7,1.76841784]
[1641236629471,2.00479,3754.3,3753.8,0.128157]
[1641236630772,2.00479,3754.7,3753.8,0.128157]
[1641236630972,2.00479,3754.7,3753.8,2.132947]
[1641236632473,2.00479,3754.7,3754.2,3.75819409]
[1641236633574,2.00479,3754.7,3754.3,3.75819409]
[1641236633775,2.00479,3754.7,3754.6,3.00648973]
[1641236633975,2.234781,3754.7,3754.6,3.00648973]
[1641236634677,0.43093838,3754.7,3754.6,3.00648973]
[1641236635176,0.20094738,3754.7,3754.6,3.00648973]
[1641236635376,0.43093838,3754.7,3754.5,3.00648973]
[1641236635877,0.5405,3754.9,3754.6,0.128157]
[1641236636077,2.00479,3755.0,3754.6,0.128157]
[1641236636078,1.33120518,3755.5,3754.6,0.128157]
[1641236636778,1.33120518,3755.5,3754.5,3.00648973]
[1641236636979,3.33599518,3755.5,3754.7,2.00479]
[1641236637479,1.5,3755.1,3754.7,2.00479]
[1641236638280,1.5,3754.9,3754.7,2.00479]
[1641236638479,0.229991,3754.8,3754.7,2.00479]
[1641236638881,1.729991,3754.8,3754.7,2.00479]
[1641236640689,0.229991,3754.8,3754.4,1.19437723]
[1641236640886,1.729991,3754.8,3754.4,1.19437723]
[1641236641085,1.729991,3754.8,3754.3,3.00648973]
[1641236641086,0.229991,3754.8,3754.3,3.00648973]
[1641236641284,1.5,3754.4,3754.0,3.75819409]
[1641236641485,1.5,3754.7,3754.0,3.75819409]
[1641236641686,1.5,3754.1,3754.0,3.75819409]
[1641236641884,2.559691,3754.1,3754.0,3.75819409]
[1641236642084,2.559691,3754.1,3754.0,4.88963768]
[1641236642586,2.559691,3754.1,3754.0,1.13144359]
[1641236643386,4.564481,3754.1,3754.0,1.13144359]
[1641236644084,3.064481,3754.1,3754.0,1.13144359]
[1641236644284,2.83449,3754.1,3754.0,1.25960059]
[1641236644685,3.064481,3754.1,3754.0,1.25960059]
[1641236644985,3.064481,3754.1,3754.0,1.13144359]
[1641236646289,2.83449,3754.1,3754.0,1.13144359]
[1641236646491,3.064481,3754.1,3754.0,1.13144359]
[1641236647892,2.83449,3754.1,3754.0,1.13144359]
[1641236649193,3.064481,3754.1,3754.0,1.13144359]
[1641236649997,1.03034956,3754.1,3754.0,1.13144359]
[1641236650697,1.26034056,3754.1,3754.0,1.13144359]
[1641236650898,1.99764056,3754.1,3754.0,1.13144359]
[1641236652497,1.76764956,3754.1,3754.0,1.13144359]
[1641236652698,1.99764056,3754.1,3754.0,1.13144359]
[1641236655198,14.92764056,3754.1,3754.0,1.13144359]
[1641236655400,16.93243056,3754.1,3753.0,4.50903392]
[1641236655600,0.94001739,3753.7,3753.0,4.50903392]
[1641236655801,1.5,3753.4,3753.0,4.50903392]
[1641236656001,0.229991,3753.3,3753.0,4.50903392]
[1641236656202,0.961291,3753.3,3753.0,4.50903392]
[1641236656602,1.5,3753.2,3753.0,4.50903392]
[1641236656803,14.26202085,3753.2,3753.0,4.50903392]
[1641236657103,12.93,3753.2,3753.0,4.50903392]
[1641236657303,12.93,3753.2,3753.1,0.75160941]
[1641236657504,12.93,3753.2,3753.0,1.17517849]
[1641236657706,0.229991,3753.1,3753.0,1.17517849]
[1641236658708,1.729991,3753.1,3753.0,1.17517849]
[1641236658913,0.79263325,3753.0,3752.3,1.49487405]
[1641236659109,1.5,3752.4,3752.3,1.49487405]
[1641236659310,2.269491,3752.4,3752.3,1.49487405]
[1641236659709,2.269491,3752.4,3752.1,0.72638234]
[1641236660109,0.769491,3752.4,3752.1,0.72638234]
[1641236664213,0.229991,3752.4,3752.1,0.72638234]
[1641236665413,0.076609,3752.3,3752.1,0.72638234]
[1641236665614,13.43479,3752.5,3752.1,0.72638234]
[1641236674323,13.43479,3752.5,3752.1,0.69758234]
[1641236675222,2.00479,3752.5,3752.2,0.128157]
[1641236675524,0.076609,3752.4,3752.3,2.00479]
[1641236675722,6.82902399,3753.1,3752.3,2.00479]
[1641236675922,5.32902399,3753.1,3752.3,2.00479]
[1641236676722,30.3279,3753.5,3752.3,2.72529]
[1641236676926,7.33341376,3753.4,3752.3,2.72529]
[1641236677425,15.693426,3753.3,3752.3,2.72529]
[1641236677625,11.43,3753.3,3752.3,2.72529]
[1641236678125,11.43,3753.3,3752.3,2.00479]
[1641236678327,1.33214506,3752.8,3752.3,2.00479]
[1641236678727,11.43,3753.3,3752.3,2.00479]
[1641236679529,11.43,3752.8,3752.3,2.00479]
[1641236679726,12.76214861,3752.8,3752.3,2.00479]
[1641236680027,1.33214861,3752.8,3752.3,2.00479]
[1641236680227,2.46152291,3752.9,3752.3,2.00479]
[1641236682129,13.89152291,3752.9,3752.3,2.00479]
[1641236682529,13.89152291,3752.9,3752.1,0.69758234]
[1641236683727,2.00479,3752.5,3752.1,0.69758234]
[1641236684732,0.19978901,3752.5,3752.1,0.69758234]
[1641236685631,15.89631291,3752.9,3752.1,0.69758234]
[1641236686532,1.33209639,3752.7,3752.1,0.69758234]
[1641236686732,1.91279639,3752.7,3752.1,0.69758234]
[1641236687333,1.91279639,3752.7,3752.1,0.82573934]
[1641236690238,1.91279639,3752.7,3752.1,0.69758234]
[1641236695049,1.91279639,3752.7,3752.1,0.82573934]
[1641236696350,1.91279639,3752.7,3752.1,0.69758234]
[1641236698053,1.91279639,3752.7,3752.1,0.82573934]
[1641236699856,1.91279639,3752.7,3752.2,1.49487405]
[1641236700758,1.91279639,3752.7,3752.1,2.19245639]
[1641236702359,1.91279639,3752.7,3752.2,1.49487405]
[1641236706068,1.91279639,3752.7,3752.3,1.49487405]
[1641236707171,1.91279639,3752.7,3752.2,1.49487405]
[1641236707371,3.13805383,3752.0,3751.7,2.00479]
[1641236707571,13.006609,3751.9,3751.5,3.76048781]
[1641236707771,2.00479,3751.6,3750.5,7.43379]
[1641236707973,1.33265279,3751.4,3750.5,7.43379]
[1641236708175,1.33265279,3751.4,3750.5,2.00479]
[1641236708371,0.076609,3751.3,3750.5,2.00479]
[1641236708572,0.076609,3751.3,3750.8,2.99844735]
[1641236708773,11.43,3751.2,3750.8,2.99844735]
[1641236708974,1.33283574,3750.9,3750.8,2.99844735]
[1641236709173,1.92573574,3750.9,3750.8,2.99844735]
[1641236709373,0.5929,3750.9,3750.8,2.99844735]
[1641236709576,0.669509,3750.9,3750.6,3.73759625]
[1641236709774,1.33292279,3750.7,3750.6,3.73759625]
[1641236709974,11.43,3750.8,3750.1,2.00479]
[1641236710173,1.33292279,3750.7,3750.1,2.00479]
[1641236713074,11.43,3750.4,3750.1,2.00479]
[1641236713276,0.076609,3750.3,3750.1,2.00479]
[1641236717780,11.43,3750.2,3750.1,2.00479]
[1641236717982,11.43,3750.2,3749.9,1.26932037]
[1641236718181,11.43,3749.7,3749.6,2.9479928]
[1641236718384,12.1648,3749.7,3749.6,2.9479928]
[1641236718580,13.498064,3749.7,3749.6,2.9479928]
[1641236718981,13.574673,3749.7,3749.6,2.9479928]
[1641236719683,15.074673,3749.7,3749.6,3.16396167]
[1641236719880,15.074673,3749.7,3748.3,62.2936]
[1641236719881,19.08444857,3749.7,3748.3,29.30180274]
[1641236720082,19.08444857,3749.7,3747.8,5.06063053]
[1641236720083,1.5,3748.7,3747.8,5.06063053]
[1641236720281,2.83382418,3748.4,3747.8,5.06063053]
[1641236720482,14.26382418,3748.4,3747.8,4.99923053]
[1641236720681,14.26382418,3748.4,3747.8,4.21723053]
[1641236720883,12.76382418,3748.4,3747.8,3.83093053]
[1641236721083,1.33402169,3747.9,3747.4,1.17836377]
[1641236721281,1.89232169,3747.9,3747.4,1.17836377]
[1641236721686,25.8846896,3747.5,3747.4,1.17836377]
[1641236721887,25.9612986,3747.5,3747.4,1.17836377]
[1641236723486,24.15440395,3747.5,3747.4,1.17836377]
[1641236723686,24.15440395,3747.5,3747.4,1.40835477]
[1641236723885,24.07779495,3747.5,3747.4,1.40835477]
[1641236724886,24.15440395,3747.5,3747.4,1.17836377]
[1641236726486,24.15440395,3747.5,3747.4,3.01143511]
[1641236726686,25.48843454,3747.5,3747.4,3.01143511]
[1641236727488,25.48843454,3747.5,3747.2,2.00479]
[1641236728387,25.48843454,3747.5,3747.2,2.68971627]
[1641236735998,1.5,3747.4,3747.2,0.68492627]
[1641236736198,2.62575463,3747.3,3746.7,3.01143511]
[1641236736396,1.33438839,3746.8,3746.7,3.01143511]
[1641236736593,2.13038839,3746.8,3746.7,3.01143511]
[1641236736795,0.796,3746.8,3746.7,3.01143511]
[1641236737298,0.796,3746.8,3746.7,3.24142611]
[1641236737499,1.21494062,3747.3,3746.7,3.24142611]
[1641236737899,1.21494062,3747.3,3746.7,0.229991]
[1641236738099,2.00479,3747.1,3746.7,1.24990404]
[1641236738299,1.33427622,3746.8,3746.7,1.01991304]
[1641236738500,1.41088522,3746.8,3746.7,1.24990404]
[1641236738701,1.41088522,3746.8,3746.7,1.01991304]
[1641236739816,0.372658,3746.9,3746.7,1.01991304]
[1641236740601,0.372658,3746.9,3746.8,0.229991]
[1641236741205,1.33432073,3747.0,3746.8,0.229991]
[1641236741602,1.33432073,3747.0,3746.5,0.128157]
[1641236742404,1.33432073,3747.0,3746.3,2.00479]
[1641236742803,1.33450058,3746.5,3746.2,0.93924292]
[1641236743004,11.43,3746.4,3745.4,31.6706]
[1641236743204,11.43,3746.4,3743.5,1.47055877]
[1641236743403,11.43,3746.4,3744.7,30.9829]
[1641236743604,1.5,3746.2,3745.2,31.89628496]
[1641236743816,11.43,3745.8,3745.2,0.95348496]
[1641236744012,1.44010915,3745.7,3743.9,31.5744]
[1641236744213,1.44010915,3745.7,3745.2,2.00479]
[1641236744214,1.95930915,3745.7,3745.2,2.00479]
[1641236745413,11.43,3745.6,3744.0,29.7583]
[1641236745616,1.70447371,3745.2,3744.0,29.7583]
[1641236745813,14.46942144,3745.2,3743.1,1.33494773]
[1641236746013,3.03942144,3745.2,3743.7,1.5]
[1641236746227,2.00479,3744.8,3743.9,2.00479]
[1641236746418,2.76669,3744.8,3743.9,2.00479]
[1641236746615,2.76669,3744.8,3744.0,0.128157]
[1641236747415,2.76669,3744.8,3743.9,2.00479]
[1641236747716,2.76669,3744.8,3744.1,0.89758736]
[1641236748815,2.76669,3744.8,3744.2,0.128157]
[1641236749420,2.76669,3744.8,3744.4,3.01143511]
[1641236750519,14.19669,3744.8,3744.4,3.01143511]
[1641236751820,15.53177318,3744.8,3744.4,3.01143511]
[1641236752419,15.53177318,3744.8,3743.6,1.5]
[1641236752420,1.33549862,3744.5,3743.8,3.76416211]
[1641236752619,12.76549862,3744.5,3743.8,3.76416211]
[1641236753023,1.5,3744.4,3743.8,3.76416211]
[1641236753219,11.43,3744.3,3743.8,3.76416211]
[1641236753422,1.5,3743.9,3743.8,3.76416211]
[1641236753619,2.17769457,3743.9,3743.8,3.76416211]
[1641236753823,13.60769457,3743.9,3743.8,3.76416211]
[1641236754021,13.60769457,3743.9,3742.9,6.96175541]
[1641236754022,14.94311573,3743.9,3742.9,6.96175541]
[1641236754223,2.00479,3743.1,3742.9,6.96175541]
[1641236754423,2.62819,3743.1,3742.9,7.19174641]
[1641236754822,2.62819,3743.1,3742.9,6.96175541]
[1641236755226,2.62819,3743.1,3743.0,1.729991]
[1641236755423,2.00479,3743.5,3743.0,0.229991]
[1641236756325,2.00479,3743.9,3743.0,2.234781]
[1641236756526,2.00479,3743.9,3743.5,1.5]
[1641236756729,1.18430652,3744.0,3743.8,1.5]
[1641236756926,1.18430652,3744.0,3743.9,1.729991]
[1641236757126,6.52e-06,3744.0,3743.9,1.5]
[1641236757329,6.52e-06,3744.0,3743.6,2.25589133]
[1641236757728,6.52e-06,3744.0,3743.9,1.5]
[1641236757929,1.48038315,3744.3,3743.9,0.229991]
[1641236758134,1.48038315,3744.7,3743.6,0.75589133]
[1641236758329,0.7315,3744.3,3743.8,2.00479]
[1641236758831,2.00479,3744.6,3744.0,1.5]
[1641236759032,2.00479,3744.6,3744.0,0.7945]
[1641236759234,2.30680653,3744.6,3744.0,0.7945]
[1641236760032,2.30680653,3744.6,3743.9,0.128157]
[1641236760434,2.00479,3744.6,3743.9,0.128157]
[1641236760634,2.00479,3744.6,3743.8,2.00479]
[1641236761737,3.33994448,3744.6,3743.9,0.128157]
[1641236762137,0.30246416,3744.5,3743.9,0.128157]
[1641236762938,3.33994448,3744.6,3743.9,0.128157]
[1641236764343,0.6818,3744.9,3744.4,1.5]
[1641236764540,1.48038315,3745.2,3744.7,1.5]
[1641236764738,1.48038315,3745.2,3744.8,0.128157]
[1641236765539,1.48038315,3745.2,3744.9,0.88585853]
[1641236766239,1.77703511,3745.5,3744.9,0.88585853]
[1641236766240,1.48038315,3745.3,3744.9,0.88585853]
[1641236766438,1.48038315,3745.3,3745.1,2.00479]
[1641236767140,1.48038315,3745.3,3744.7,2.00479]
[1641236767339,1.33496912,3745.1,3744.7,2.00479]
[1641236767939,0.6952,3745.3,3744.7,2.00479]
[1641236768140,2.99874995,3745.5,3744.7,2.00479]
[1641236768344,2.00479,3745.4,3744.7,2.00479]
[1641236768941,3.48517315,3745.4,3744.7,2.00479]
[1641236769142,1.18066779,3745.1,3744.7,3.50479]
[1641236769345,1.18066779,3745.1,3744.7,2.00479]
[1641236770245,1.18066779,3745.1,3745.0,1.50693485]
[1641236770443,3.18545779,3745.4,3745.0,1.50693485]
[1641236771848,3.18545779,3745.4,3744.9,1.50693485]
[1641236773248,2.00479,3745.4,3744.8,1.12717975]
[1641236773548,1.33483369,3745.5,3744.8,1.12717975]
[1641236774150,34.91639,3746.0,3745.3,1.5]
[1641236774151,36.25106513,3746.0,3745.3,1.5]
[1641236774351,2.00479,3746.0,3745.3,1.5]
[1641236774549,2.00479,3746.0,3745.4,0.128157]
[1641236774950,2.00479,3746.0,3745.2,2.00479]
[1641236775349,2.00479,3746.0,3745.2,2.76601443]
[1641236776654,2.00479,3746.0,3745.2,2.89417143]
[1641236778759,2.00479,3746.0,3745.4,1.5]
[1641236778958,2.00479,3746.0,3745.7,1.5]
[1641236779158,2.00479,3746.0,3745.8,0.229991]
[1641236779364,2.00479,3746.4,3745.9,1.5]
[1641236779560,2.00479,3746.4,3746.3,1.5]
[1641236779959,2.00479,3746.4,3746.3,1.729991]
[1641236780160,2.00479,3746.4,3746.3,0.229991]
[1641236780361,2.00479,3746.4,3746.3,2.83347902]
[1641236780862,2.00479,3746.4,3746.3,1.33347902]
[1641236781262,2.00479,3746.9,3746.3,1.33347902]
[1641236782263,2.00479,3746.9,3746.8,1.5]
[1641236782462,2.00479,3746.9,3746.8,1.729991]
[1641236782664,2.00479,3746.9,3746.3,3.10827802]
[1641236782863,2.72639,3746.9,3746.3,2.00479]
[1641236783764,2.72639,3746.9,3746.4,1.11789111]
[1641236784165,1.5,3746.7,3744.8,35.98883485]
[1641236784367,1.33438661,3746.8,3744.8,34.48883485]
[1641236784565,2.00479,3746.5,3745.3,2.00479]
[1641236784765,2.00479,3746.5,3745.6,1.29404927]
[1641236784965,2.00479,3746.5,3745.8,0.128157]
[1641236788769,2.00479,3746.5,3745.9,1.5]
[1641236790869,2.00479,3746.5,3745.8,0.128157]
[1641236793272,2.00479,3746.9,3746.2,1.5]
[1641236793473,2.00479,3746.9,3746.4,1.5]
[1641236795175,2.00479,3746.9,3746.6,1.5]
[1641236795372,2.00479,3746.9,3746.7,0.229991]
[1641236795573,2.00479,3746.9,3746.8,0.128157]
[1641236796576,2.00479,3746.9,3746.8,1.63509185]
[1641236796776,2.00479,3746.9,3746.8,3.13509185]
[1641236796974,2.00479,3746.9,3746.8,1.63509185]
[1641236797277,1.18066779,3747.2,3746.8,3.13509185]
[1641236797474,1.18066779,3747.2,3747.1,1.5]
[1641236797674,1.18066779,3747.2,3747.1,1.729991]
[1641236798074,3.18545779,3747.5,3747.1,0.229991]
[1641236799575,2.00479,3747.5,3747.4,1.5]
[1641236799779,65.0392,3748.6,3747.4,1.729991]
[1641236799978,1.33356093,3749.1,3747.9,1.5]
[1641236800578,1.33356093,3749.1,3747.3,30.4092]
[1641236800579,2.00479,3748.7,3747.8,2.00479]
[1641236800777,2.00479,3748.7,3747.9,0.128157]
[1641236800978,2.00479,3748.7,3747.8,2.00479]
[1641236801180,2.81439,3748.7,3747.8,2.00479]
[1641236802778,2.81439,3748.7,3747.9,1.15691089]
[1641236810985,0.8096,3748.7,3748.0,0.128157]
[1641236811186,1.33367475,3748.8,3748.0,0.128157]
[1641236812694,1.33367475,3748.8,3748.3,2.00479]
[1641236814999,2.00479,3749.0,3748.3,2.00479]
[1641236816798,2.00479,3749.0,3748.3,3.50479]
[1641236817200,2.00479,3749.0,3748.3,2.00479]
[1641236820307,2.00479,3749.0,3748.4,1.5]
[1641236820506,2.00479,3749.0,3748.5,0.85559004]
[1641236820706,30.0436,3750.1,3748.9,2.00479]
[1641236820908,1.33327111,3749.9,3749.0,0.128157]
[1641236821110,30.0436,3750.1,3749.0,0.128157]
[1641236821511,30.0436,3750.1,3749.1,0.88500097]
[1641236824815,30.0436,3750.1,3749.3,2.00479]
[1641236825016,2.00479,3750.2,3749.3,2.00479]
[1641236826221,2.00479,3750.2,3749.3,1.63333989]
[1641236827526,2.00479,3750.2,3749.3,2.32943989]
[1641236828323,2.00479,3750.2,3749.4,1.5]
[1641236829323,2.00479,3750.2,3749.5,1.5]
[1641236829825,2.00479,3750.2,3749.3,1.63333989]
[1641236830430,13.43479,3750.2,3749.3,1.63333989]
[1641236831127,0.15055406,3750.1,3749.3,1.63333989]
[1641236831527,13.43479,3750.2,3749.3,1.63333989]
[1641236831728,2.00479,3750.2,3749.3,1.63333989]
[1641236833430,1.18066779,3749.4,3749.3,1.63333989]
[1641236833629,1.18066779,3749.4,3749.3,1.86333089]
[1641236834729,1.48038315,3749.7,3749.3,1.86333089]
[1641236834931,1.48038315,3749.6,3749.3,1.63333989]
[1641236835832,1.48038315,3749.6,3749.4,0.229991]
[1641236836233,1.48038315,3749.5,3749.3,1.63333989]
[1641236837838,1.48038315,3749.5,3749.4,0.229991]
[1641236838034,1.48038315,3749.5,3749.3,1.63333989]
[1641236838937,1.48038315,3749.5,3749.4,0.229991]
[1641236839838,2.1162743,3749.8,3749.4,0.229991]
[1641236840039,1.77703511,3749.7,3749.4,0.229991]
[1641236841443,1.77703511,3749.8,3749.4,0.229991]
[1641236842240,0.33923919,3749.6,3749.4,0.229991]
[1641236843142,2.94750117,3750.5,3749.5,3.50479]
[1641236843344,4.08800095,3751.0,3749.9,1.5]
[1641236843542,4.08800095,3751.0,3750.0,0.128157]
[1641236843844,3.70279265,3750.8,3750.0,0.128157]
[1641236844443,3.70279265,3750.8,3750.1,1.23082411]
[1641236845246,3.70279265,3750.8,3750.6,2.00479]
[1641236845447,3.70279265,3750.8,3750.7,0.229991]
[1641236846046,4.08800095,3751.0,3750.6,2.00479]
[1641236846246,13.43479,3751.4,3750.6,2.00479]
[1641236847047,0.15050083,3751.3,3750.6,2.00479]
[1641236848050,1.65050083,3751.3,3750.6,2.00479]
[1641236848249,11.43,3750.6,3750.0,1.49141018]
[1641236848449,12.1126,3750.6,3750.0,1.49141018]
[1641236848849,1.33308982,3750.4,3750.0,1.49141018]
[1641236849049,0.15050083,3750.5,3750.0,1.49141018]
[1641236849250,2.00479,3750.3,3750.0,1.49141018]
[1641236849450,2.00479,3750.3,3749.6,1.49141018]
[1641236850152,2.00479,3750.3,3749.6,1.61956718]
[1641236852755,2.00479,3750.3,3749.7,1.49141018]
[1641236853654,2.00479,3750.3,3749.6,0.128157]
[1641236855258,3.49462167,3750.3,3749.7,1.49141018]
[1641236856758,3.49462167,3750.3,3749.6,1.61956718]
[1641236857160,1.48983167,3750.3,3749.6,3.11956718]
[1641236857357,1.48983167,3750.3,3750.2,2.00479]
[1641236857557,1.48983167,3750.3,3750.2,2.895981]
[1641236858157,1.48983167,3750.3,3750.2,3.66096316]
[1641236858758,0.62053933,3750.5,3750.2,3.66096316]
[1641236858959,1.48983167,3750.7,3750.2,3.66096316]
[1641236860760,1.48983167,3750.7,3750.3,1.5]
[1641236861161,1.48983167,3750.7,3750.4,0.128157]
[1641236861362,1.48983167,3750.7,3750.5,0.229991]
[1641236862659,1.19280466,3750.6,3750.5,0.229991]
[1641236864460,1.19280466,3750.7,3750.5,0.229991]
[1641236864660,1.19280466,3750.7,3750.6,0.84692432]
[1641236865562,1.19280466,3750.8,3750.6,0.84692432]
[1641236865762,1.19280466,3750.8,3750.7,0.229991]
[1641236867664,0.19335205,3750.9,3750.7,0.229991]
[1641236867863,0.19335205,3750.9,3750.6,0.84692432]
[1641236869066,1.68318372,3750.9,3750.6,0.84692432]
[1641236870867,1.48983167,3750.8,3750.6,0.84692432]
[1641236871868,1.48983167,3750.8,3750.7,0.229991]
[1641236872468,1.48983167,3750.8,3750.6,0.84692432]
[1641236872968,1.48983167,3750.8,3750.6,1.07691532]
[1641236873369,1.48983167,3750.8,3750.6,0.84692432]
[1641236875171,1.48983167,3750.8,3750.6,1.07691532]
[1641236875371,1.68318372,3750.9,3750.6,1.07691532]
[1641236876775,1.48983167,3750.8,3750.6,1.07691532]
[1641236877774,1.19442726,3750.8,3750.6,1.07691532]
[1641236879678,1.38777931,3750.9,3750.6,1.07691532]
[1641236880882,1.19442726,3750.8,3750.6,1.07691532]
[1641236883582,1.38777931,3750.9,3750.6,1.07691532]
[1641236884684,2.00479,3751.0,3750.6,0.84692432]
[1641236885890,1.5,3750.9,3750.2,2.00479]
[1641236886090,0.19745729,3750.9,3750.3,1.50484819]
[1641236886290,1.69077475,3750.9,3750.3,1.50484819]
[1641236888294,1.49331746,3750.6,3750.2,2.00479]
[1641236889699,1.1942825,3750.3,3750.2,2.00479]
[1641236889898,1.1942825,3750.3,3750.2,2.234781]
[1641236890098,1.1942825,3750.3,3750.2,2.00479]
[1641236890901,1.1942825,3750.3,3750.2,2.234781]
[1641236892602,1.1942825,3750.4,3750.2,2.234781]
[1641236893703,1.1942825,3750.4,3750.2,0.229991]
[1641236894507,1.1942825,3750.4,3750.2,2.234781]
[1641236895104,1.1942825,3750.4,3750.2,3.73962919]
[1641236895305,1.1942825,3750.5,3750.2,3.73962919]
[1641236896404,1.1942825,3750.6,3750.2,3.73962919]
[1641236896604,1.1942825,3750.6,3750.2,3.50963819]
[1641236897708,1.1942825,3750.6,3750.3,1.50484819]
[1641236898608,1.49331746,3750.9,3750.3,1.50484819]
[1641236899010,1.49331746,3750.6,3750.2,2.00479]
[1641236900515,1.19522215,3750.3,3750.2,2.00479]
[1641236900715,1.19522215,3750.3,3750.2,2.234781]
[1641236902418,1.19522215,3750.3,3750.2,2.00479]
[1641236902616,1.19522215,3750.3,3750.2,2.234781]
[1641236904119,1.19522215,3750.3,3750.2,2.00479]
[1641236905119,1.19522215,3750.3,3750.2,2.234781]
[1641236909222,1.19522215,3750.3,3750.2,0.229991]
[1641236911325,1.79198095,3750.9,3750.2,1.729991]
[1641236911527,2.23997619,3751.2,3750.8,5.50958]
[1641236911727,2.23997619,3751.2,3751.1,1.5]
[1641236911924,2.23997619,3751.2,3751.1,1.729991]
[1641236913224,0.19745729,3751.9,3751.1,2.91659946]
[1641236913623,0.19745729,3751.9,3751.5,2.00479]
[1641236914826,0.63660575,3752.0,3751.5,2.00479]
[1641236914827,0.19745729,3751.8,3751.5,2.00479]
[1641236915025,0.19745729,3751.8,3751.6,0.229991]
[1641236915326,0.19745729,3751.8,3751.7,0.92166167]
[1641236916023,0.63660575,3752.0,3751.7,3.22051867]
[1641236916224,1e-08,3752.0,3751.9,1.5]
[1641236916526,2.23997619,3752.2,3751.9,1.5]
[1641236916723,2.98663492,3752.5,3752.1,1.5]
[1641236916924,2.98663492,3752.5,3752.4,1.5]
[1641236917225,3.73329365,3752.8,3752.4,1.729991]
[1641236917423,31.0861,3754.0,3752.8,22.97134942]
[1641236917623,31.0861,3754.0,3752.8,23.63354942]
[1641236917823,2.00479,3753.6,3752.8,23.63354942]
[1641236918025,2.00479,3753.6,3753.2,1.5]
[1641236918227,2.00479,3753.6,3753.2,2.54330202]
[1641236918625,2.99561128,3753.4,3753.2,2.54330202]
[1641236918826,2.99561128,3753.4,3753.3,0.229991]
[1641236919723,2.99561128,3753.4,3753.3,2.234781]
[1641236920327,32.9356,3754.4,3753.3,2.234781]
[1641236920526,4.47995238,3754.5,3753.3,2.234781]